bitfinex-derivatives/quotes_ETHF0:USTF0_20260116
["timestamp","ask_amount","ask_price","bid_price","bid_amount"]
[1768542029849,0.15124,3307.1,3305.6,3.33410656]
[1768542030152,0.15124,3307.1,3306.0,4.93342732]
[1768542030450,0.15124,3307.1,3306.0,3.33410656]
[1768542030652,0.15124,3307.1,3305.9,1.59932076]
[1768542030844,0.15450819,3307.1,3305.9,1.60149376]
[1768542031855,0.15450819,3307.1,3305.9,4.93560032]
[1768542032051,0.15450819,3307.1,3306.0,3.33410656]
[1768542033456,0.15450819,3307.1,3306.1,0.35933771]
[1768542033653,0.15450819,3307.1,3306.2,0.35933771]
[1768542033858,0.15450819,3307.1,3306.3,0.35933771]
[1768542034158,0.15450819,3307.1,3306.4,0.35933771]
[1768542034349,0.15450819,3307.1,3306.5,0.35933771]
[1768542034549,0.15450819,3307.1,3306.6,0.35933771]
[1768542034746,0.15450819,3307.1,3306.7,0.35933771]
[1768542034948,0.05265288,3308.1,3306.8,0.35933771]
[1768542035149,3.17821,3307.8,3306.9,0.35955471]
[1768542035457,3.17821,3307.8,3306.1,3.33410656]
[1768542036054,0.15371335,3307.8,3306.5,3.33410656]
[1768542036249,0.15371335,3307.8,3306.7,3.33410656]
[1768542036250,0.00250335,3307.8,3306.7,3.33410656]
[1768542036950,0.00250335,3307.8,3305.9,2.66534636]
[1768542036951,3.17817,3308.6,3306.9,3.33410656]
[1768542037149,3.17817,3308.6,3307.0,3.33410656]
[1768542037657,0.15117,3308.6,3307.0,3.33410656]
[1768542038058,0.00341297,3308.6,3307.0,3.33410656]
[1768542039558,0.15118,3308.4,3307.0,3.33410656]
[1768542039755,0.00341297,3308.6,3307.3,3.33410656]
[1768542040057,0.00341297,3308.6,3307.4,4.93342732]
[1768542040253,0.00341297,3308.6,3307.5,3.33410656]
[1768542041161,4.40939638,3309.2,3307.6,3.33410656]
[1768542041162,1.38239638,3309.2,3307.6,3.33410656]
[1768542042249,1.38532783,3309.2,3307.6,3.33410656]
[1768542042450,1.23418783,3309.2,3307.6,3.33410656]
[1768542042856,0.15115,3309.0,3307.6,3.33410656]
[1768542044664,1.86701385,3311.2,3308.0,3.33410656]
[1768542044877,2.08553904,3310.5,3308.0,3.33410656]
[1768542045258,0.15111,3310.0,3308.0,3.33410656]
[1768542045464,2.08553904,3310.5,3308.0,3.33410656]
[1768542045465,3.46143403,3310.5,3308.0,3.33410656]
[1768542045769,3.026,3310.4,3308.0,3.33410656]
[1768542045973,0.15111,3309.9,3308.0,3.33410656]
[1768542046462,0.15112,3309.7,3308.0,3.33410656]
[1768542047066,0.15112,3309.7,3306.8,3.33410656]
[1768542047067,2.01818385,3308.5,3306.8,3.33410656]
[1768542047252,3.026,3308.4,3306.8,3.33410656]
[1768542047458,3.026,3308.4,3306.9,0.34620286]
[1768542047654,3.026,3308.4,3307.0,0.34620286]
[1768542047850,3.026,3308.4,3306.8,3.33410656]
[1768542048054,3.17718,3308.4,3306.9,0.3462446]
[1768542048256,3.026,3308.3,3307.0,0.34459208]
[1768542048458,3.026,3308.3,3306.8,3.33410656]
[1768542048657,3.026,3308.3,3305.3,0.15132]
[1768542048658,0.15118,3308.4,3307.0,3.33410656]
[1768542048860,0.15118,3308.4,3307.2,3.33410656]
[1768542049064,0.15118,3308.4,3307.4,3.33410656]
[1768542049265,0.15118,3308.4,3306.2,3.33410656]
[1768542050253,3.43429515,3308.3,3305.8,2.13058259]
[1768542050459,3.43429515,3308.3,3303.6,7.12718928]
[1768542050460,0.15123,3307.3,3304.8,2.13058259]
[1768542050663,0.15123,3307.3,3304.2,3.73011787]
[1768542050664,3.17723,3307.2,3306.0,0.34470765]
[1768542051064,10.72097889,3306.5,3304.5,2.13058259]
[1768542051260,10.72097889,3306.5,3305.2,1.06535348]
[1768542051460,6.58482975,3307.2,3305.2,1.06535348]
[1768542051655,0.15123,3307.2,3305.2,1.06535348]
[1768542051863,0.15123,3307.2,3303.9,1.86701385]
[1768542051864,0.15123,3307.2,3305.5,1.06535348]
[1768542052069,0.15123,3307.2,3305.7,0.79879823]
[1768542052367,0.15123,3307.2,3305.8,3.29245786]
[1768542052569,0.15123,3307.2,3305.8,4.09125609]
[1768542053269,0.15123,3307.2,3305.9,0.34486172]
[1768542053669,0.15123,3307.2,3305.9,0.79879823]
[1768542053866,0.15123,3307.2,3306.0,0.34486052]
[1768542054066,0.15123,3307.2,3306.1,0.34486052]
[1768542054269,0.15123,3307.2,3306.2,0.34486052]
[1768542054470,0.15123,3307.2,3306.3,0.34486052]
[1768542054666,0.15123,3307.2,3306.0,0.79879823]
[1768542054867,0.15123,3307.2,3306.1,0.3450251]
[1768542055067,0.15123,3307.2,3306.2,0.3450251]
[1768542055373,0.15123,3307.2,3305.9,1.06535348]
[1768542055374,0.15123,3307.2,3306.3,0.3450251]
[1768542055575,0.15123,3307.2,3306.1,0.79879823]
[1768542055771,0.15123,3307.2,3306.2,0.34514791]
[1768542056067,0.15123,3307.2,3306.3,0.34514791]
[1768542056279,0.15123,3307.2,3306.4,0.34526782]
[1768542056463,0.15123,3307.2,3306.5,0.34526782]
[1768542056664,0.15123,3307.2,3306.1,0.79879823]
[1768542056864,0.15123,3307.2,3306.2,0.34525401]
[1768542057074,0.15123,3307.2,3306.3,0.34525401]
[1768542057270,0.15123,3307.2,3306.4,0.34525401]
[1768542057474,0.15123,3307.2,3306.5,0.34525401]
[1768542057671,0.15123,3307.2,3306.1,0.79879823]
[1768542057973,0.15123,3307.2,3306.2,0.34540099]
[1768542058167,0.15123,3307.2,3306.3,0.34540099]
[1768542058368,0.15123,3307.2,3306.4,0.34540099]
[1768542058573,0.15123,3307.2,3306.5,0.34540099]
[1768542058770,0.15123,3307.2,3306.6,0.34540099]
[1768542058973,0.15123,3307.2,3306.2,0.79879823]
[1768542059174,0.15123,3307.2,3306.3,0.34555353]
[1768542059374,0.15123,3307.2,3306.4,0.34555353]
[1768542059577,0.15123,3307.2,3306.5,0.34555353]
[1768542059777,0.15123,3307.2,3306.6,0.34555353]
[1768542060079,0.15123,3307.2,3306.7,0.34555353]
[1768542060378,0.15123,3307.2,3306.2,0.79879823]
[1768542060577,0.15123,3307.2,3306.3,0.34571284]
[1768542060778,0.15123,3307.2,3306.2,0.79879823]
[1768542060779,0.15123,3307.2,3306.4,0.34571284]
[1768542060978,0.15123,3307.2,3306.5,0.34571284]
[1768542061176,0.15123,3307.2,3306.6,0.34571284]
[1768542061373,0.15123,3307.2,3306.7,0.34571284]
[1768542061573,0.00344748,3307.3,3306.2,0.79879823]
[1768542061772,0.00344748,3307.3,3306.3,0.34571379]
[1768542061973,0.00344748,3307.3,3306.4,1.14451202]
[1768542062173,0.00344748,3307.3,3306.5,0.34571379]
[1768542062479,0.00344748,3307.3,3306.6,0.34571379]
[1768542062680,0.00344748,3307.3,3306.7,0.34571379]
[1768542062982,0.00344748,3307.3,3306.8,0.34571379]
[1768542063181,0.00344748,3307.3,3306.4,0.79879823]
[1768542063376,0.00344748,3307.3,3306.5,0.34567913]
[1768542063580,0.00344748,3307.3,3306.6,0.34567913]
[1768542063771,0.00344748,3307.3,3306.7,0.34567913]
[1768542063974,0.00344748,3307.3,3306.8,0.34567913]
[1768542064273,0.00344748,3307.3,3306.3,0.79879823]
[1768542064474,0.00344748,3307.3,3306.4,1.14450945]
[1768542064675,0.00344748,3307.3,3306.5,0.34571122]
[1768542064875,0.00344748,3307.3,3306.6,0.34571122]
[1768542065077,0.00344748,3307.3,3306.7,0.34571122]
[1768542065380,0.00344748,3307.3,3306.8,0.34571122]
[1768542065582,0.00344748,3307.3,3306.4,0.79879823]
[1768542065782,0.00344748,3307.3,3306.5,0.3457209]
[1768542065983,0.00344748,3307.3,3306.6,0.3457209]
[1768542066186,0.00344748,3307.3,3306.7,0.3457209]
[1768542066385,0.00344748,3307.3,3306.8,0.3457209]
[1768542066680,0.00344748,3307.3,3306.4,0.79879823]
[1768542066876,0.00344748,3307.3,3306.5,0.34567256]
[1768542067074,0.00344748,3307.3,3306.4,0.79879823]
[1768542067075,0.00344748,3307.3,3306.6,0.34567256]
[1768542067274,0.00344748,3307.3,3306.7,0.34567256]
[1768542067479,0.00344748,3307.3,3306.8,0.34567256]
[1768542067675,0.00344748,3307.3,3306.9,0.34567256]
[1768542067870,0.00344748,3307.3,3306.4,0.79879823]
[1768542068081,0.00344748,3307.3,3306.5,0.34564208]
[1768542068276,0.00344748,3307.3,3306.4,0.79879823]
[1768542068277,0.00344748,3307.3,3306.6,0.34564208]
[1768542068585,0.00344748,3307.3,3306.7,0.34564208]
[1768542068781,0.00344748,3307.3,3306.8,0.34564208]
[1768542068984,0.00344748,3307.3,3306.9,0.34564208]
[1768542069285,0.00344748,3307.3,3306.4,0.79879823]
[1768542069486,0.00344748,3307.3,3306.5,0.34564238]
[1768542069682,0.00344748,3307.3,3306.6,0.34564238]
[1768542069880,0.00344748,3307.3,3306.7,0.34564238]
[1768542070180,0.00344748,3307.3,3306.8,0.34564238]
[1768542070380,0.00344748,3307.3,3306.9,0.34564238]
[1768542070581,0.00344748,3307.3,3306.4,0.79879823]
[1768542070782,0.00344748,3307.3,3306.5,0.34575764]
[1768542070982,0.00344748,3307.3,3306.6,0.34575764]
[1768542071182,0.00344748,3307.3,3306.7,0.34575764]
[1768542071383,0.00344748,3307.3,3306.8,0.34575764]
[1768542071579,0.00344748,3307.3,3306.9,0.34575764]
[1768542071780,0.00344748,3307.3,3306.5,0.79879823]
[1768542071981,0.00344748,3307.3,3306.6,0.34586954]
[1768542072179,0.00344748,3307.3,3306.7,0.34586954]
[1768542072377,0.00344748,3307.3,3306.8,0.34586954]
[1768542072582,0.00344748,3307.3,3306.9,0.34586954]
[1768542072788,0.00344748,3307.3,3306.5,0.79879823]
[1768542074388,0.00344748,3307.3,3306.6,0.79879823]
[1768542075193,0.00344748,3307.3,3306.7,0.79879823]
[1768542076192,0.00344748,3307.3,3306.8,0.79879823]
[1768542077285,0.15121,3307.8,3306.9,4.09125609]
[1768542077490,10.72097889,3307.5,3306.9,4.09125609]
[1768542077694,3.026,3308.0,3307.0,4.09125609]
[1768542077886,3.026,3308.2,3307.3,0.79879823]
[1768542078087,0.15117,3308.6,3307.3,0.79879823]
[1768542078398,3.026,3308.5,3307.3,0.79879823]
[1768542078594,3.026,3308.5,3307.5,0.79879823]
[1768542079784,0.15463626,3308.6,3307.5,0.79879823]
[1768542079987,3.026,3308.4,3307.5,0.79879823]
[1768542081187,0.15463626,3308.6,3307.5,0.79879823]
[1768542081588,3.026,3308.5,3307.5,0.79879823]
[1768542082396,3.026,3308.5,3307.4,0.79879823]
[1768542082893,6.28029632,3309.9,3307.7,3.26176158]
[1768542083092,1.86753855,3309.5,3308.0,4.06055981]
[1768542083291,0.15115,3309.1,3308.1,0.79879823]
[1768542083893,0.15473936,3309.1,3308.2,0.79879823]
[1768542084090,0.15473936,3309.1,3308.1,0.00306904]
[1768542084298,1.86753855,3309.0,3307.7,1.06535348]
[1768542084499,1.86753855,3309.0,3307.5,1.06898665]
[1768542085399,1.86753855,3309.0,3307.5,1.07211358]
[1768542085601,1.86753855,3309.0,3307.5,0.00312693]
[1768542087002,1.86753855,3309.0,3307.5,3.52456144]
[1768542087600,0.15473936,3309.1,3307.5,3.52456144]
[1768542087794,3.026,3309.0,3307.5,3.52456144]
[1768542088194,0.15473936,3309.1,3307.5,3.52456144]
[1768542088505,0.00358936,3309.1,3307.5,3.52456144]
[1768542089098,0.00358936,3309.1,3307.7,3.52143451]
[1768542091494,0.00358936,3309.1,3307.9,3.52143451]
[1768542102610,1.86753855,3308.7,3307.5,0.00312693]
[1768542102811,1.86753855,3308.7,3307.5,3.52456144]
[1768542103305,1.21960577,3309.0,3307.5,3.52456144]
[1768542103511,1.21960577,3308.4,3307.5,3.52456144]
[1768542104603,1.21960577,3308.2,3307.5,3.52456144]
[1768542105403,5.04592472,3309.1,3307.5,3.52456144]
[1768542108510,2.02092472,3309.1,3307.5,3.52456144]
[1768542108716,3.025,3309.0,3307.5,3.52456144]
[1768542110413,5.04592472,3309.1,3307.5,3.52456144]
[1768542114520,5.04592472,3309.1,3307.8,1.07047157]
[1768542116820,2.02092472,3309.1,3307.8,1.07047157]
[1768542117011,10.72097889,3308.4,3307.8,1.07047157]
[1768542117211,6.85301029,3308.4,3307.8,4.55605176]
[1768542117425,3.24132988,3308.4,3307.8,1.07047157]
[1768542118426,3.24132988,3308.4,3308.0,1.07047157]
[1768542118722,3.6819377,3309.1,3308.0,1.07047157]
[1768542118916,3.6819377,3309.1,3307.5,2.13370952]
[1768542120822,3.52719834,3308.9,3307.5,2.13370952]
[1768542121019,3.52719834,3308.6,3307.3,2.13058259]
[1768542121330,3.52719834,3308.6,3307.0,2.13058259]
[1768542121824,3.52719834,3308.6,3306.9,2.13058259]
[1768542122225,3.52719834,3308.6,3306.9,2.1333997]
[1768542122617,3.52719834,3308.6,3307.2,1.60632418]
[1768542123322,3.52719834,3308.6,3307.1,1.60632418]
[1768542124427,3.5307877,3309.1,3307.3,1.60632418]
[1768542124621,3.5307877,3309.1,3307.6,1.60632418]
[1768542126823,0.00358936,3309.1,3307.6,1.60632418]
[1768542127425,0.00358936,3309.1,3307.7,1.60632418]
[1768542129033,3.5307877,3309.1,3307.7,1.60632418]
[1768542131939,3.24132988,3308.4,3307.7,1.60632418]
[1768542132139,4.74650389,3308.8,3307.6,1.60632418]
[1768542132443,3.52719834,3308.7,3307.6,1.60632418]
[1768542134441,3.52719834,3308.7,3307.2,2.13058259]
[1768542134442,3.52719834,3308.7,3307.8,1.60632418]
[1768542135136,3.52719834,3308.7,3307.5,2.13058259]
[1768542135638,3.52719834,3308.7,3307.4,2.13058259]
[1768542139851,0.00358936,3309.1,3307.8,2.13058259]
[1768542140044,3.52719834,3309.6,3308.0,2.13058259]
[1768542140243,4.74650389,3309.0,3307.8,2.13058259]
[1768542140547,4.74650389,3309.0,3307.5,2.13058259]
[1768542140749,3.52719834,3308.9,3307.3,2.13058259]
[1768542140949,3.53083098,3308.9,3307.3,2.13058259]
[1768542141642,3.53083098,3308.9,3307.2,2.13058259]
[1768542141843,3.32168655,3308.5,3307.2,2.13058259]
[1768542142045,3.32168655,3308.1,3306.9,2.1333997]
[1768542142352,3.32168655,3308.1,3306.9,0.00281711]
[1768542143846,0.15117,3308.7,3306.9,0.00281711]
[1768542143847,3.32168655,3308.5,3306.9,0.00281711]
[1768542145852,3.32168655,3308.2,3306.9,0.00281711]
[1768542147754,0.93865083,3307.6,3306.9,0.00281711]
[1768542149555,3.50066067,3308.1,3306.9,0.00281711]
[1768542149856,3.50066067,3308.1,3306.9,2.1333997]
[1768542150746,3.65183067,3308.6,3306.9,2.1333997]
[1768542150952,3.65183067,3308.6,3306.9,0.00281711]
[1768542151347,3.65183067,3308.6,3307.0,2.13058259]
[1768542152658,3.50066067,3308.6,3307.0,2.13058259]
[1768542154360,3.50066067,3308.6,3307.1,2.13058259]
[1768542155859,3.50066067,3308.6,3307.0,2.13058259]
[1768542157362,3.50066067,3308.2,3306.9,0.00281711]
[1768542159263,0.00363264,3308.9,3306.9,0.00281711]
[1768542159264,3.50066067,3308.8,3306.9,3.35270525]
[1768542159564,3.50066067,3308.8,3307.0,2.13058259]
[1768542159750,3.50066067,3308.8,3307.1,2.13058259]
[1768542160854,3.50066067,3308.8,3307.2,2.13058259]
[1768542161250,3.50066067,3308.8,3307.3,2.13058259]
[1768542162864,3.50066067,3308.7,3307.2,2.13058259]
[1768542169273,3.50066067,3308.7,3307.3,2.13058259]
[1768542169567,3.50066067,3308.7,3307.6,2.13058259]
[1768542169768,0.00363264,3308.9,3307.7,2.13058259]
[1768542169959,0.00363264,3308.9,3307.8,2.13058259]
[1768542172173,3.42670866,3308.9,3307.8,2.13058259]
[1768542173271,3.42670866,3308.9,3307.5,2.66317336]
[1768542173272,3.42670866,3308.9,3307.7,2.13058259]
[1768542173471,3.42670866,3308.9,3307.8,2.13058259]
[1768542174575,3.42670866,3308.9,3307.7,2.13058259]
[1768542175275,0.00363264,3308.9,3307.7,2.13058259]
[1768542175479,3.42670866,3308.9,3307.8,2.13058259]
[1768542180582,3.42307602,3309.9,3308.8,1.21921783]
[1768542180772,0.15108,3310.5,3309.7,1.21921783]
[1768542180967,4.80999814,3311.1,3309.7,1.21921783]
[1768542181174,1.21921783,3310.8,3309.4,1.21921783]
[1768542181677,1.21921783,3310.8,3309.4,1.22214277]
[1768542181678,1.22306682,3310.8,3309.4,1.22214277]
[1768542182473,0.00384899,3310.8,3309.4,1.22214277]
[1768542182679,4.64614284,3310.8,3309.4,1.22214277]
[1768542183478,0.00384899,3310.8,3309.7,1.21921783]
[1768542183682,0.00384899,3310.8,3310.0,1.21921783]
[1768542183875,0.00384899,3310.8,3309.8,1.21921783]
[1768542184379,0.00384899,3310.8,3309.5,1.21921783]
[1768542184768,0.00384899,3310.8,3309.4,3.38519008]
[1768542184970,0.00384899,3310.8,3309.5,1.21921783]
[1768542185177,1.21921783,3311.2,3309.7,1.21921783]
[1768542185377,3.42307602,3311.7,3310.2,1.21921783]
[1768542185574,4.64229385,3311.6,3310.1,1.21921783]
[1768542186279,4.64608344,3311.6,3310.1,1.21921783]
[1768542186473,3.42686561,3311.6,3310.1,1.21921783]
[1768542186680,3.72545746,3314.3,3310.1,1.21921783]
[1768542186681,3.42307602,3312.2,3310.2,3.38226514]
[1768542186880,1.21921783,3311.3,3310.0,1.21921783]
[1768542187179,4.64229385,3311.9,3310.0,3.38226514]
[1768542187374,1.21921783,3312.3,3310.5,3.38226514]
[1768542187581,1.21921783,3312.1,3310.5,3.38226514]
[1768542187780,1.21921783,3312.1,3310.6,1.21921783]
[1768542187977,0.00376495,3312.3,3311.0,3.38226514]
[1768542188184,3.42307602,3313.3,3311.0,3.38226514]
[1768542188371,6.41428602,3315.1,3311.0,3.38226514]
[1768542188372,2.68882856,3315.7,3312.5,3.38226514]
[1768542188573,3.42307602,3314.6,3313.2,1.21921783]
[1768542188776,3.42307602,3314.6,3313.4,1.21921783]
[1768542188977,3.42307602,3315.7,3314.0,1.21921783]
[1768542189277,3.4253427,3315.7,3314.0,0.00236278]
[1768542191180,3.4253427,3315.7,3312.7,3.28140408]
[1768542191181,3.42307602,3315.2,3312.7,3.28140408]
[1768542191585,3.42307602,3315.2,3312.7,2.84840408]
[1768542192382,3.42307602,3315.2,3312.7,0.0034304]
[1768542193083,3.42307602,3314.7,3312.7,0.0034304]
[1768542195083,3.42307602,3314.7,3312.7,2.80859316]
[1768542196789,3.42307602,3315.2,3312.7,2.80859316]
[1768542198584,3.57394602,3315.2,3312.7,2.80859316]
[1768542198786,3.42307602,3314.8,3312.7,0.0034304]
[1768542198988,3.42307602,3314.5,3312.7,0.0034304]
[1768542199587,3.57397602,3314.5,3312.7,0.0034304]
[1768542199999,3.42307602,3314.3,3312.7,0.0034304]
[1768542200699,3.42307602,3313.8,3312.7,0.0034304]
[1768542200886,3.57400602,3313.8,3312.7,0.0034304]
[1768542201087,3.57400602,3313.8,3311.5,3.021]
[1768542201487,3.57400602,3313.8,3311.3,23.7]
[1768542201690,3.57400602,3313.8,3311.3,26.721]
[1768542201883,3.57400602,3313.8,3311.3,23.7]
[1768542202083,3.57400602,3313.8,3311.3,0.00260649]
[1768542202288,3.43123637,3313.4,3311.3,0.00260649]
[1768542202597,3.58218637,3313.4,3311.3,0.00260649]
[1768542203186,3.58223637,3312.4,3310.1,2.80410891]
[1768542203589,3.58223637,3312.4,3309.6,2.80410891]
[1768542203789,3.58223637,3312.4,3309.7,3.021]
[1768542204195,3.58499438,3312.4,3309.7,3.02492342]
[1768542204800,3.58499438,3312.4,3309.7,0.00392342]
[1768542205000,0.151,3312.3,3309.7,0.00392342]
[1768542205199,3.58218637,3313.4,3311.2,2.80361475]
[1768542205398,3.58218637,3313.4,3311.3,1.85866289]
[1768542205699,3.43123637,3313.4,3311.3,1.85866289]
[1768542206091,3.43123637,3313.4,3311.3,4.66227764]
[1768542206296,3.43386099,3313.4,3311.3,2.80361475]
[1768542207295,3.43386099,3313.4,3310.8,2.7636374]
[1768542207696,3.58481099,3313.4,3310.8,2.7636374]
[1768542208002,0.00262462,3313.4,3311.6,2.7636374]
[1768542208599,0.00262462,3313.4,3311.7,3.021]
[1768542208800,0.00262462,3313.4,3311.7,5.67229284]
[1768542209393,0.00262462,3313.4,3312.0,1.85866289]
[1768542210496,3.34651502,3313.9,3312.0,1.85866289]
[1768542211095,3.34651502,3313.9,3312.0,4.52639679]
[1768542211397,3.34651502,3313.9,3312.0,10.52639679]
[1768542211603,3.3502347,3313.9,3312.0,1.85866289]
[1768542215904,3.021,3315.2,3312.1,2.65577559]
[1768542216097,3.34651502,3315.2,3313.5,1.85866289]
[1768542217011,3.34923162,3315.2,3313.5,0.00259795]
[1768542217903,3.34923162,3315.2,3314.1,1.85866289]
[1768542217904,0.0027166,3315.2,3314.1,1.85866289]
[1768542218104,3.34651502,3316.1,3314.1,1.85866289]
[1768542218307,3.34651502,3316.1,3314.1,3.98924548]
[1768542218504,3.34651502,3316.1,3314.2,2.13058259]
[1768542218819,3.34651502,3316.6,3314.2,4.67450597]
[1768542219109,3.34938123,3316.6,3314.2,4.67450597]
[1768542219499,3.34938123,3316.6,3314.3,3.02]
[1768542219702,3.34938123,3316.6,3314.2,2.54392338]
[1768542219703,3.34938123,3316.6,3314.4,3.02]
[1768542220316,3.34938123,3316.6,3314.6,1.85866289]
[1768542220911,3.34938123,3316.6,3314.2,3.98924548]
[1768542221119,3.50019123,3316.6,3314.1,3.02]
[1768542221409,3.50019123,3316.6,3314.2,1.85866289]
[1768542222412,3.50019123,3316.6,3314.0,3.019]
[1768542223412,3.50019123,3316.6,3314.2,1.85866289]
[1768542224511,3.49732502,3316.5,3313.8,2.28151259]
[1768542224710,3.49732502,3316.5,3313.8,0.15093]
[1768542224910,3.49732502,3316.5,3313.8,2.00959289]
[1768542226216,3.49733502,3316.3,3313.5,2.13318054]
[1768542226520,3.49733502,3316.3,3313.5,0.00259795]
[1768542226821,3.34651502,3316.1,3313.5,0.00259795]
[1768542227010,0.15083,3316.0,3313.5,0.00259795]
[1768542227209,3.34651502,3315.9,3313.5,0.00259795]
[1768542227409,3.34651502,3315.2,3313.5,0.00259795]
[1768542228118,3.34651502,3315.1,3313.5,0.00259795]
[1768542228316,3.34651502,3314.9,3312.2,2.28158259]
[1768542228523,3.34651502,3314.9,3312.2,3.17]
[1768542228707,3.34651502,3314.9,3312.2,0.151]
[1768542229017,3.49739502,3314.9,3312.2,0.151]
[1768542229411,3.49739502,3314.9,3312.2,0.15313716]
[1768542229606,0.15089,3314.8,3312.2,0.15313716]
[1768542229912,3.019,3315.8,3312.2,0.00213716]
[1768542229913,3.34651502,3314.4,3312.2,0.00213716]
[1768542233722,3.49742502,3314.4,3312.2,0.00213716]
[1768542233923,3.34651502,3314.4,3312.2,0.00213716]
[1768542234130,3.3729281,3313.9,3312.2,0.00213716]
[1768542234429,3.3759885,3313.9,3312.2,0.00213716]
[1768542242721,3.3729281,3313.1,3310.9,2.13058259]
[1768542243231,3.3729281,3313.1,3310.8,4.72083196]
[1768542243626,3.3729281,3313.1,3310.8,4.72340133]
[1768542244344,3.3729281,3313.1,3310.9,2.58019693]
[1768542244526,3.3729281,3313.1,3311.0,4.71077952]
[1768542244728,3.3729281,3313.1,3311.1,2.58019693]
[1768542245331,3.3729281,3313.7,3311.2,2.58019693]
[1768542246632,3.3729281,3313.7,3311.4,2.13058259]
[1768542248641,0.0030604,3313.9,3311.5,2.60778268]
[1768542248833,3.3729281,3314.7,3312.7,6.59883171]
[1768542249144,0.15087,3315.1,3312.9,5.68076465]
[1768542249334,0.15087,3315.1,3313.0,3.55018206]
[1768542249734,0.1536091,3315.1,3313.0,3.55018206]
[1768542250134,0.1536091,3315.1,3313.0,5.68076465]
[1768542250833,0.1536091,3315.1,3312.9,2.13058259]
[1768542251036,3.3729281,3315.0,3312.9,2.13058259]
[1768542251634,3.3729281,3315.0,3312.8,2.13058259]
[1768542251841,3.3729281,3315.0,3312.6,2.13058259]
[1768542253047,3.3729281,3315.0,3312.5,2.13058259]
[1768542253530,3.3729281,3314.6,3312.1,3.55018206]
[1768542253836,3.3729281,3314.6,3312.2,5.68076465]
[1768542254239,3.3729281,3314.6,3312.3,2.13058259]
[1768542254433,3.3729281,3314.6,3312.2,5.68076465]
[1768542255142,3.3729281,3314.6,3312.3,2.13058259]
[1768542256248,3.3729281,3314.6,3312.4,2.13058259]
[1768542258948,3.5238281,3314.6,3312.4,2.13058259]
[1768542259139,3.3729281,3314.4,3312.3,2.13058259]
[1768542263548,3.3729281,3314.4,3312.6,2.13058259]
[1768542263747,3.36574402,3314.2,3312.5,2.13058259]
[1768542264052,3.36574402,3314.0,3312.2,2.13058259]
[1768542266051,3.36574402,3314.0,3311.2,8.45083428]
[1768542266052,3.36574402,3313.0,3311.2,2.13058259]
[1768542266252,3.36574402,3313.0,3311.1,2.13058259]
[1768542267048,3.36574402,3313.0,3310.9,2.13058259]
[1768542267247,3.36574402,3313.0,3310.9,5.5959744]
[1768542267549,3.36574402,3313.0,3311.0,2.13058259]
[1768542271250,3.36574402,3313.0,3310.9,3.46539181]
[1768542272146,3.36574402,3313.0,3310.8,0.00256937]
[1768542272352,3.51671402,3313.0,3310.8,0.00256937]
[1768542272754,3.51671402,3313.0,3310.8,3.46796118]
[1768542272957,3.36574402,3313.0,3310.9,3.46539181]
[1768542273258,0.15094,3313.7,3311.1,3.46539181]
[1768542273259,3.45933964,3313.6,3311.1,3.46539181]
[1768542273450,3.45933964,3313.6,3311.3,3.46539181]
[1768542275962,3.45933964,3313.6,3311.4,2.13058259]
[1768542276963,3.45933964,3313.6,3311.5,3.46539181]
[1768542277264,3.45933964,3313.6,3311.6,5.5959744]
[1768542277465,3.45933964,3313.6,3311.7,2.13058259]
[1768542277766,3.45933964,3313.6,3311.9,2.13058259]
[1768542281464,3.45933964,3313.6,3312.0,2.13058259]
[1768542281863,3.45933964,3313.6,3311.7,5.5959744]
[1768542282064,0.15093,3313.9,3311.9,5.5959744]
[1768542282264,3.61026964,3313.9,3311.9,2.13058259]
[1768542282568,3.61026964,3313.9,3312.0,2.13058259]
[1768542283068,3.61026964,3313.9,3311.9,2.13058259]
[1768542283270,3.61026964,3313.9,3312.0,2.13058259]
[1768542283966,3.61026964,3313.9,3311.8,2.13058259]
[1768542285375,3.61026964,3313.9,3311.9,2.13058259]
[1768542287972,3.61026964,3313.9,3311.8,2.13058259]
[1768542288272,3.61026964,3313.9,3311.5,6.12856517]
[1768542288273,3.61026964,3313.9,3311.9,2.13058259]
[1768542291878,3.61026964,3313.9,3312.1,2.13058259]
[1768542292472,3.61026964,3313.9,3312.2,2.13058259]
[1768542299389,3.57302382,3313.8,3312.3,2.13058259]
[1768542300174,3.57302382,3313.8,3312.2,2.13058259]
[1768542300373,3.72395382,3313.8,3312.2,2.13058259]
[1768542300574,3.57302382,3313.3,3312.1,2.13058259]
[1768542300879,3.57302382,3313.3,3312.0,2.13058259]
[1768542301174,3.57302382,3313.3,3311.8,2.13058259]
[1768542304270,3.57302382,3313.3,3311.5,2.66317336]
[1768542304271,3.72398382,3313.3,3311.6,2.13058259]
[1768542305169,3.57302382,3313.1,3311.6,2.13058259]
[1768542305375,3.57302382,3313.1,3311.3,2.66317336]
[1768542305376,3.57302382,3313.1,3311.5,2.13058259]
[1768542305783,3.57302382,3312.8,3311.5,2.13058259]
[1768542306079,0.15097,3313.1,3311.4,2.13058259]
[1768542306680,3.72399382,3313.1,3311.4,2.13058259]
[1768542307180,1.86063737,3312.9,3311.4,2.13058259]
[1768542307371,3.57302382,3312.8,3311.4,2.13058259]
[1768542308183,3.57302382,3312.8,3311.3,2.13058259]
[1768542309181,3.57302382,3312.8,3311.2,2.13058259]
[1768542311183,3.57302382,3312.8,3311.1,2.13058259]
[1768542312283,3.72400382,3312.8,3311.1,2.13058259]
[1768542312485,3.57302382,3312.7,3311.1,2.13058259]
[1768542312682,3.57641498,3312.7,3311.1,2.13058259]
[1768542313080,3.57641498,3312.7,3311.0,2.13058259]
[1768542315290,1.21688739,3312.0,3311.0,2.13058259]
[1768542316483,3.57641498,3312.7,3311.0,2.13058259]
[1768542316685,0.00339116,3312.7,3311.4,4.68057318]
[1768542316895,0.00339116,3312.7,3311.4,6.81115577]
[1768542317388,0.00339116,3312.7,3311.4,5.59426838]
[1768542317788,0.00339116,3312.7,3311.5,2.13058259]
[1768542322491,0.00339116,3312.7,3311.5,5.73217832]
[1768542322792,3.56777957,3313.5,3311.7,5.73217832]
[1768542322982,3.41682957,3313.5,3311.9,5.73217832]
[1768542323786,3.42019443,3313.5,3311.9,5.73217832]
[1768542325596,3.42019443,3313.5,3311.9,2.13058259]
[1768542326394,3.42019443,3313.5,3312.0,2.13058259]
[1768542327893,0.00336486,3313.5,3312.1,2.13058259]
[1768542328099,0.00336486,3313.5,3312.1,5.65083368]
[1768542328898,0.00336486,3313.5,3312.2,5.65083368]
[1768542330398,0.00336486,3313.5,3312.3,5.65083368]
[1768542331294,0.00336486,3313.5,3312.3,3.52025109]
[1768542337302,1.21586631,3313.3,3312.3,3.52025109]
[1768542338194,0.00336486,3313.5,3311.9,2.66317336]
[1768542338195,1.21586631,3312.5,3312.0,2.13058259]
[1768542338398,3.52307358,3313.4,3312.0,2.13058259]
[1768542338595,1.21586631,3313.1,3312.0,2.13058259]
[1768542338796,1.21586631,3313.1,3312.1,5.65083368]
[1768542343708,1.21586631,3313.1,3312.1,2.13058259]